Cogmind - Beta 10.2 @@@ ROGUE MODE // 2021.02.05 @ 22:45:24 Player: David Result: Destroyed by G-67 Veteran with Electrolaser Performance ------------- Evolutions (6) 3000 Regions Visited (18) 3600 Robots Destroyed (139) 695 Value Destroyed (5585) 5585 Prototype IDs (15) 300 Alien Tech Used (1) 200 Bonus (2857) 2857 TOTAL SCORE: 16237 Bonus ------- High Alert Combat Kills 717 Follower Combat Kills 212 Entered Garrisons 400 Used RIF Installer 1000 Aligned with FarCom 300 Met Zhirov 300 Friendly Fire -72 Cogmind --------- Core Integrity 0/1150 Matter 228/300 Energy 99/100 System Corruption 7% Temperature Cool (0) Movement Core (50) Location -4/Factory Parts ------- > --- POWER (1) -------- (None) > --- PROPULSION (4) --- (None) > --- UTILITY (11) ----- Hacking Suite Advanced System Shield Relay Coupler [Hunter] (13) > --- WEAPON (3) ------- (None) > --- INVENTORY (4) ---- Railgun Peak State ------------ > --- POWER ------------ (None) > --- PROPULSION ------- Myomer Leg Compact Wheel Centrium Wheel Cooled Nuclear Pulse Thruster > --- UTILITY ---------- Experimental Cooling System Weapon Cycler Experimental Utility Shielding Hardened Heavy Armor Plating Improved Force Field Hacking Suite Hacking Suite System Shield Advanced System Shield Relay Coupler [Hunter] > --- WEAPON ----------- Matter Neutralizer Long-range Phase Cannon > --- INVENTORY -------- Improved Recalibrator [Rating: 90] Favorites ----------- Power Angular Momentum Engine Engine Angular Momentum Engine Power Core Light Nuclear Core Propulsion Armored Huge Wheel Treads Medium Treads Leg Carbon-fiber Leg Wheel Armored Huge Wheel Hover Unit Improved Hover Unit Flight Unit Cooled Nuclear Pulse Thruster Utility Hacking Suite Device Weapon Cycler Storage Small Storage Unit Processor Improved Targeting Computer Hackware Hacking Suite Protection Improved Light Armor Plating Weapon Flak Gun Energy Gun Improved Heavy Laser Energy Cannon Long-range Proton Cannon Ballistic Gun Flak Gun Ballistic Cannon Mini Assault Cannon Launcher Missile Launcher Special Weapon Remote Datajack Build | -11 -10 -10 -9 -9 -9 -8 -8 -8 -7 -7 -7 -6 -5 -5 -5 -5 -4 -4 ------- Run | Scr Mat Min Mat Min Exi Min Mat Gar Fac Gar Fac Fac Fac Upp Upp Zhi Pro Fac Slots Evolved 12 | . . . 2 . . . 2 . 2 . . 2 2 . . . . 2 Power . | . . . . . . . . . . . . . . . . . . . Propulsion 2 | . . . . . . . . . . . . 2 . . . . . . Utility 9 | . . . 2 . . . 1 . 2 . . . 2 . . . . 2 Weapon 1 | . . . . . . . 1 . . . . . . . . . . . Parts Attached 175 | 5 2 5 7 . 6 5 5 4 38 13 19 11 8 8 5 9 8 17 Power 19 | 1 . 1 . . . 1 . 1 6 2 3 2 . . . . 1 1 Engine 9 | 1 . . . . . 1 . 1 3 1 . 2 . . . . . . Core 10 | . . 1 . . . . . . 3 1 3 . . . . . 1 1 Reactor . | . . . . . . . . . . . . . . . . . . . Propulsion 44 | 2 . . 3 . . 2 . 1 10 . 8 3 4 3 . 2 1 5 Treads 1 | . . . . . . . . . . . . . . 1 . . . . Leg 17 | . . . 3 . . 2 . 1 2 . 6 . . 2 . . . 1 Wheel 14 | 2 . . . . . . . . 3 . 1 2 4 . . . . 2 Hover 4 | . . . . . . . . . 1 . 1 1 . . . . . 1 Flight 8 | . . . . . . . . . 4 . . . . . . 2 1 1 Utility 51 | . 2 3 2 . 1 1 2 1 10 3 3 2 4 3 1 6 1 6 Device 20 | . 1 . . . 1 1 1 1 2 . 2 1 1 1 . 3 1 4 Storage 8 | . . 3 . . . . . . 2 . . . . 1 1 1 . . Processor 5 | . 1 . 2 . . . . . . . . . . 1 . . . 1 Hackware 12 | . . . . . . . 1 . 5 3 . 1 1 . . 1 . . Protection 6 | . . . . . . . . . 1 . 1 . 2 . . 1 . 1 Artifact . | . . . . . . . . . . . . . . . . . . . Weapon 61 | 2 . 1 2 . 5 1 3 1 12 8 5 4 . 2 4 1 5 5 Energy Gun 14 | 1 . . 1 . 2 . . . 3 1 2 1 . 1 . . 2 . Energy Cannon 8 | . . . . . . . . . 1 . 1 . . 1 2 . 1 2 Ballistic Gun 26 | 1 . . . . 2 . 3 1 5 6 2 2 . . 1 1 1 1 Ballistic Cannon 4 | . . 1 . . 1 . . . . . . 1 . . . . 1 . Launcher 7 | . . . 1 . . 1 . . 1 1 . . . . 1 . . 2 Special Weapon 2 | . . . . . . . . . 2 . . . . . . . . . Impact Weapon . | . . . . . . . . . . . . . . . . . . . Slashing Weapon . | . . . . . . . . . . . . . . . . . . . Piercing Weapon . | . . . . . . . . . . . . . . . . . . . Special Melee Weapon . | . . . . . . . . . . . . . . . . . . . Unidentified Prototypes 16 | . . . . . 2 . 1 . 2 . 1 3 . . . 4 . 3 Parts Lost 78 | . . . . . . 1 . 4 19 8 6 3 . 5 4 . 11 17 Power 9 | . . . . . . . . . 3 1 1 1 . . 1 . 1 1 Propulsion 17 | . . . . . . . . 1 4 . 2 . . 1 1 . 3 5 Utility 20 | . . . . . . . . 2 5 2 . 1 . 2 . . . 8 Weapon 32 | . . . . . . 1 . 1 7 5 3 1 . 2 2 . 7 3 Highest Loss Streak 11 | . . . . . . 1 . 2 8 7 3 3 . 4 3 . 6 11 Average Slot Usage (%) 84 | . 80 100 96 100 92 89 99 91 76 75 84 83 88 83 87 86 76 53 Engine 3 | . 14 5 . . . 10 9 9 2 5 . 5 5 5 2 . . . Core 2 | . . 8 11 11 11 . . . 3 1 6 . . . . . 1 . Leg 7 | . . . 20 22 22 22 18 17 8 . 7 . . 2 11 11 1 2 Wheel 4 | . 28 28 1 . . . . . 1 7 2 12 11 8 2 . . 1 Flight 1 | . . . . . . . . . . . . . . . . 5 13 5 Device 7 | . 3 14 11 11 5 10 9 5 2 . 6 5 5 5 11 7 6 11 Storage 4 | . . 8 11 11 11 11 9 9 5 . . . . 3 5 5 3 . Processor 7 | . 5 5 18 22 22 22 18 14 7 7 7 6 5 5 5 2 . . Hackware 22 | . . . . . . . 9 9 19 31 30 32 35 29 29 31 33 23 Protection 1 | . . . . . . . . . 3 . 4 . 4 2 . 2 5 3 Energy Gun 4 | . 14 14 7 11 9 . . . 5 1 3 3 5 5 5 . . . Energy Cannon 1 | . . . . . . . . . 3 . 2 . . . 2 4 1 3 Ballistic Gun 6 | . 14 5 . . . . 15 22 3 17 8 10 5 2 2 4 3 . Ballistic Cannon 3 | . . 8 11 11 10 11 2 . . . . 1 5 5 4 . 1 . Naked Turns . | . . . . . . . . . . . . . . . . . . . Heaviest Build 57 | 9 10 31 23 19 19 25 28 26 53 24 26 27 34 42 37 33 37 57 Greatest Support 60 | 26 26 26 26 25 25 30 30 30 37 37 28 56 60 56 35 35 35 32 Greatest Overweight (x) 8 | . . 1 . . . . . 1 7 . 8 6 1 1 1 . 1 8 Average Overweight (x) . | . . . . . . . . . . . . . . . . . . . Largest Inventory Capacity 12 | 4 4 10 6 6 6 6 6 6 12 4 4 4 4 8 8 8 8 4 Average Capacity 5 | 4 4 5 6 6 6 6 6 6 5 4 4 4 4 6 8 8 6 4 Most Carried 8 | 4 4 7 6 6 6 6 6 6 6 4 4 4 4 8 8 8 8 4 Average Carried 4 | 2 4 5 5 6 5 5 5 5 4 2 3 3 3 4 7 7 4 2 Final Capacity 8 | 4 4 6 6 6 6 6 6 6 4 4 4 4 4 8 8 8 4 4 Final Carried 8 | 4 4 6 6 6 6 5 6 5 4 2 4 4 4 7 8 8 1 1 Class Distribution -------------------- 36% | Hacker-Mutant 22% | Hacker-Gunner 20% | Mutant 7% | Scavenger-Skirmisher 6% | Scavenger-Mutant Dominant Class ---------------- Mutant | -10/Materials Mutant | -10/Mines Mutant | -9/Materials Mutant | -9/Mines Mutant | -9/Exiles Mutant | -8/Mines Scavenger-Gunner | -8/Materials Mutant | -8/Garrison Scavenger-Mutant | -7/Factory Scavenger-Skirmisher | -7/Garrison Hacker-Mutant | -7/Factory Hacker-Gunner | -6/Factory Hacker-Gunner | -5/Factory Hacker-Mutant | -5/Upper Caves Hacker-Mutant | -5/Upper Caves Hacker-Mutant | -5/Zhirov Hacker-Mutant | -4/Proximity Caves Hacker-Mutant | -4/Factory Resources | -11 -10 -10 -9 -9 -9 -8 -8 -8 -7 -7 -7 -6 -5 -5 -5 -5 -4 -4 ----------- Run | Scr Mat Min Mat Min Exi Min Mat Gar Fac Gar Fac Fac Fac Upp Upp Zhi Pro Fac Matter Collected 4358 | 253 38 50 222 65 . 135 322 309 566 409 390 272 150 410 245 . 406 116 Remotely . | . . . . . . . . . . . . . . . . . . . Salvage Created 4876 | 30 113 . 211 91 . 173 606 475 646 721 678 191 173 194 90 . 392 92 Parts 267 | 3 3 . 16 10 . 7 37 27 33 47 22 16 12 9 3 . 14 8 Haulers Intercepted 4 | . . . 1 . . . 1 . . . 2 . . . . . . . Recyclers Shooed 4 | . . . 2 . . . . . . . . . . . . . . 2 Parts Field Recycled . | . . . . . . . . . . . . . . . . . . . Retrieved Matter . | . . . . . . . . . . . . . . . . . . . Parts Self-Destructed 24 | . . . . . . . . . . . . . . 7 4 . 13 . Prevented . | . . . . . . . . . . . . . . . . . . . Kills | -11 -10 -10 -9 -9 -9 -8 -8 -8 -7 -7 -7 -6 -5 -5 -5 -5 -4 -4 ------- Run | Scr Mat Min Mat Min Exi Min Mat Gar Fac Gar Fac Fac Fac Upp Upp Zhi Pro Fac Combat Hostiles Destroyed 114 | . . . 4 8 . 5 13 15 13 22 9 2 6 4 4 . 7 2 Guns 69 | . . . . 2 . 1 3 13 11 17 9 2 3 4 . . 4 . Cannons 22 | . . . 4 6 . 2 . . 1 . . . 3 . 4 . 1 1 AOE 23 | . . . . . . 2 10 2 1 5 . . . . . . 2 1 Classes Destroyed 16 | 1 2 . 6 1 . . . . 1 1 1 . . 1 1 . 1 . Worker 3 | . . . . . . . . . . . 1 1 . . . . . 1 Builder 2 | . . . 1 . . . . . . . . 1 . . . . . . Tunneler 2 | 1 . . . . . . . . . . . . . . . . . 1 Hauler 4 | . . . 1 . . . 1 . . . 2 . . . . . . . Recycler 2 | . 1 . . . . . . . 1 . . . . . . . . . Minesweeper 1 | . . . . . . . . . . . . . . . 1 . . . Operator 4 | . . . 1 . . . . . 2 . 1 . . . . . . . Watcher 7 | . 1 . 1 . . . 2 . . . 1 1 1 . . . . . Swarmer 45 | . . . . 8 . . . 7 5 11 . . 5 . 3 . 4 2 Grunt 39 | . . . 2 . . 5 8 6 2 7 6 . . 2 . . 1 . Brawler 4 | . . . 1 . . . 1 1 . . 1 . . . . . . . Duelist 1 | . . . . . . . . . . 1 . . . . . . . . Sentry 17 | . . . 1 . . . 4 1 5 2 2 1 1 . . . . . Hunter 2 | . . . . . . . . . . . . . . . . . 2 . Programmer 4 | . . . . . . . . . 1 1 . 1 . 1 . . . . Behemoth 2 | . . . . . . . . . . . . . . 1 1 . . . Best Kill Streak 12 | 1 1 . 4 4 . 3 9 6 7 12 4 2 5 2 3 . 3 2 Combat Bots Only 12 | . . . 2 4 . 3 9 6 7 12 3 1 5 2 3 . 3 1 Max Kills in Single Turn 3 | 1 1 . 2 2 . 1 3 2 1 3 1 1 1 1 1 . 2 2 Gunslinging 1 | . . . . . . . . 1 . . . . . . . . . . Exploded 3 | . . . . . . 1 3 1 1 3 . . . . . . 1 1 Melee . | . . . . . . . . . . . . . . . . . . . Uniques/NPCs Destroyed . | . . . . . . . . . . . . . . . . . . . Combat | -11 -10 -10 -9 -9 -9 -8 -8 -8 -7 -7 -7 -6 -5 -5 -5 -5 -4 -4 -------- Run | Scr Mat Min Mat Min Exi Min Mat Gar Fac Gar Fac Fac Fac Upp Upp Zhi Pro Fac Damage Taken 11608 | . 11 . 200 226 . 92 135 460 2037 988 901 253 302 1040 795 . 1146 3022 Core 2607 | . 11 . 34 69 . 16 . 22 341 106 187 34 61 92 123 . 356 1155 Absorbed by Shields 45 | . . . . . . . . . . . . . . . . . 18 27 Core Remaining (%) 71 | 100 . 95 . . . 70 . 96 . . 9 96 . . . . 36 . Volleys Fired 382 | 1 6 . 21 12 . 10 18 33 50 36 38 17 14 32 31 2 35 26 Largest 3 | 2 2 . 2 2 . 2 3 3 3 3 3 3 3 3 3 1 2 2 Hottest 210 | 60 60 . 84 84 . 84 86 86 134 97 131 141 141 194 188 81 116 210 Shots Fired 807 | 2 12 . 40 24 . 13 46 74 99 92 99 37 42 69 64 2 57 35 Gun 565 | 2 12 . 15 12 . 1 36 69 76 86 91 32 28 38 37 . 27 3 Cannon 197 | . . . 21 12 . 10 . . 10 . 8 5 14 31 27 2 27 30 Launcher 31 | . . . 4 . . 2 10 5 2 3 . . . . . . 3 2 Special 14 | . . . . . . . . . 11 3 . . . . . . . . Kinetic 537 | 1 6 . 21 12 . 10 36 69 52 72 71 27 28 39 51 . 39 3 Thermal 158 | . . . . . . . . . 24 14 28 10 14 26 12 . . 30 Explosive 29 | . . . 4 . . 2 10 5 2 3 . . . . . . 3 . Electromagnetic 69 | 1 6 . 15 12 . 1 . . 10 . . . . 4 1 2 15 2 Robot Hit Streak 23 | 2 2 . 5 6 . 11 11 8 15 23 13 9 15 14 8 1 8 10 Robot Miss Streak 9 | . 2 . 3 3 . 1 3 3 5 6 9 8 5 6 4 1 4 4 Penetration Max 2 | . . . . . . . . . . . . . . . . . 2 1 Secondary Targets 7 | . . . . . . . . 5 1 1 . . . . . . . . Max Gunslinging Chain 1 | . . . . . . . . 1 1 1 . . . . . . . . Autonomous 72 | . . . . . . . . . 18 20 27 . . . . . 7 . Shots Hit Robots 520 | 2 5 . 18 14 . 7 25 43 78 68 67 26 26 50 37 1 36 17 Core Hits 312 | 1 2 . 9 8 . 8 25 24 37 53 47 21 22 20 9 . 16 10 Critical Hits 5 | . . . . . . . 1 1 . . 1 . 1 . 1 . . . Critical Kills 3 | . . . . . . . 1 . . . 1 . 1 . . . . . Critical Parts Destroyed 2 | . . . . . . . . 1 . . . . . . 1 . . . Melee Attacks . | . . . . . . . . . . . . . . . . . . . Impact . | . . . . . . . . . . . . . . . . . . . Slashing . | . . . . . . . . . . . . . . . . . . . Piercing . | . . . . . . . . . . . . . . . . . . . Sneak Attacks . | . . . . . . . . . . . . . . . . . . . Combat Hostiles . | . . . . . . . . . . . . . . . . . . . Follow-up Attacks . | . . . . . . . . . . . . . . . . . . . Damage Inflicted 14154 | 26 68 . 860 265 . 328 1384 930 1567 2048 1522 464 493 1382 887 11 1042 877 Guns 7246 | 26 68 . 51 56 . 15 308 686 1318 1305 1286 414 196 633 339 . 443 102 Cannons 3524 | . . . 295 209 . 138 . . 113 . 177 50 297 749 548 11 312 625 Explosions 3373 | . . . 514 . . 175 1076 244 131 743 59 . . . . . 281 150 Melee . | . . . . . . . . . . . . . . . . . . . Ramming 11 | . . . . . . . . . 5 . . . . . . . 6 . Kinetic 8268 | 13 55 . 295 209 . 138 308 686 1103 1168 1137 358 443 850 865 . 538 102 Thermal 2323 | . . . 264 . . . . . 215 137 385 106 50 444 . . . 722 Explosive 2900 | . . . 250 . . 175 1076 244 131 743 . . . . . . 281 . Electromagnetic 652 | 13 13 . 51 56 . 15 . . 113 . . . . 88 22 11 217 53 Impact . | . . . . . . . . . . . . . . . . . . . Slashing . | . . . . . . . . . . . . . . . . . . . Piercing . | . . . . . . . . . . . . . . . . . . . Highest Corruption 8 | . . . . . . . . 1 6 7 8 5 . . . . . 7 Average Corruption 5 | . . . . . . . . 1 5 6 7 5 . . . . . 5 Corruption Purged . | . . . . . . . . . . . . . . . . . . . Effects 106 | . . . . . . . . 2 16 24 31 27 . . . . . 6 Message Errors 17 | . . . . . . . . . 3 3 3 7 . . . . . 1 Matter Fused 25 | . . . . . . . . . 5 3 7 10 . . . . . . Heat Flow Errors 9 | . . . . . . . . . 2 2 4 1 . . . . . . Energy Discharges 14 | . . . . . . . . 1 2 5 2 3 . . . . . 1 Parts Rejected 2 | . . . . . . . . . . 2 . . . . . . . . Data Loss (minor) 16 | . . . . . . . . 1 1 1 7 5 . . . . . 1 Data Loss (major) 7 | . . . . . . . . . 1 1 2 . . . . . . 3 Misfires 4 | . . . . . . . . . 1 . 2 1 . . . . . . Targeting Errors 10 | . . . . . . . . . 1 7 2 . . . . . . . Weapon Failures 2 | . . . . . . . . . . . 2 . . . . . . . Overload Shots . | . . . . . . . . . . . . . . . . . . . Overflow Damage 428 | . . . 195 2 . . 33 . . 9 24 . 32 4 37 . 84 8 Projectiles 109 | . . . . 2 . . . . . . . . 32 4 37 . 28 6 Explosions 319 | . . . 195 . . . 33 . . 9 24 . . . . . 56 2 Melee . | . . . . . . . . . . . . . . . . . . . Knockbacks 14 | . . . 2 2 . 1 . . . . . . 2 2 3 . 2 . Impact . | . . . . . . . . . . . . . . . . . . . Kinetic 13 | . . . 2 1 . 1 . . . . . . 2 2 3 . 2 . Secondary 1 | . . . . 1 . . . . . . . . . . . . . . Self-Inflicted Damage 253 | . . . 90 . . . . . 1 . 97 . . . . . 38 27 Shots 7 | . . . 2 . . . . . . . 3 . . . . . 1 1 Rammed 2 | . . . . . . . . . 1 . . . . . . . 1 . Targets Rammed 4 | . . . . . . . . . 3 . . . . . . . 1 . Kicked 2 | . . . . . . . . . 2 . . . . . . . . . Crushed . | . . . . . . . . . . . . . . . . . . . Highest Temperature 629 | . . . 121 147 . 54 126 133 271 247 306 157 310 422 316 41 133 629 Average Temperature 95 | . . . 37 66 . 22 33 41 67 39 108 49 112 183 183 21 26 270 Received Heat Transfer 2068 | . 6 . 33 . . 54 72 135 330 177 375 78 9 189 36 . 112 462 Effects 21 | . . . . . . . . . 1 . . . . 3 . . . 17 Shutdowns 2 | . . . . . . . . . . . . . . 2 . . . . Energy Bleed 4 | . . . . . . . . . 1 . . . . 1 . . . 2 Matter Decay 3 | . . . . . . . . . . . . . . . . . . 3 Short Circuit 2 | . . . . . . . . . . . . . . . . . . 2 Damage (major) 10 | . . . . . . . . . . . . . . . . . . 10 Siege Activations . | . . . . . . . . . . . . . . . . . . . Robots Corrupted . | . . . . . . . . . . . . . . . . . . . Combat Hostiles . | . . . . . . . . . . . . . . . . . . . Parts Fried 1 | . . . . . . . . . . . . . . . . . 1 . Impact Corruptions . | . . . . . . . . . . . . . . . . . . . Robots Melted . | . . . . . . . . . . . . . . . . . . . Combat Hostiles . | . . . . . . . . . . . . . . . . . . . Parts Melted 2 | . . . . . . . . . . . 2 . . . . . . . Heat Transferred 3205 | . . . 150 . . . . . 518 296 672 174 74 629 . . . 692 Parts Sabotaged . | . . . . . . . . . . . . . . . . . . . Parts Stolen . | . . . . . . . . . . . . . . . . . . . Parts Stripped . | . . . . . . . . . . . . . . . . . . . Power Chain Reactions 2 | . . . . . . . . . . . 1 . . . . . . 1 Missiles Intercepted . | . . . . . . . . . . . . . . . . . . . Alert | -11 -10 -10 -9 -9 -9 -8 -8 -8 -7 -7 -7 -6 -5 -5 -5 -5 -4 -4 ------- Run | Scr Mat Min Mat Min Exi Min Mat Gar Fac Gar Fac Fac Fac Upp Upp Zhi Pro Fac Peak Influence 1101 | 5 65 25 250 307 . 181 672 1101 635 839 756 348 193 . . . . 351 Initial 577 | . 3 25 9 97 . . 70 436 577 272 440 322 9 . . . . . Average 352 | . 27 25 149 205 . 87 306 838 509 657 594 148 62 . . . . 84 Maximum Alert Level 4 | . . . 1 1 . . 2 4 2 3 3 1 . . . . . 1 Low Security (%) 41 | 100 100 100 68 44 . 100 30 . . . . 73 100 . . . . 75 Level 1 17 | . . . 31 55 . . 42 . 14 19 1 26 . . . . . 24 Level 2 26 | . . . . . . . 26 39 85 10 69 . . . . . . . Level 3 11 | . . . . . . . . 25 . 69 28 . . . . . . . Level 4 3 | . . . . . . . . 34 . . . . . . . . . . Level 5 . | . . . . . . . . . . . . . . . . . . . High Security . | . . . . . . . . . . . . . . . . . . . Max Security . | . . . . . . . . . . . . . . . . . . . Squads Dispatched 22 | . . 1 1 . . . 4 . 8 . 3 1 2 . . . . 2 Investigation 2 | . . 1 . . . . . . . . . . 1 . . . . . Extermination 4 | . . . . . . . . . 2 . . 1 1 . . . . . Reinforcement 5 | . . . 1 . . . 1 . 2 . 1 . . . . . . . Assault 2 | . . . . . . . . . . . 1 . . . . . . 1 Garrison 9 | . . . . . . . 3 . 4 . 1 . . . . . . 1 Intercept . | . . . . . . . . . . . . . . . . . . . Construction Impeded 1 | . . . . . . . . . . . 1 . . . . . . . Haulers Reinforced . | . . . . . . . . . . . . . . . . . . . Stealth | -11 -10 -10 -9 -9 -9 -8 -8 -8 -7 -7 -7 -6 -5 -5 -5 -5 -4 -4 --------- Run | Scr Mat Min Mat Min Exi Min Mat Gar Fac Gar Fac Fac Fac Upp Upp Zhi Pro Fac Distress Signals 7 | . . . 2 . . . 2 . . . . . . . . . . 3 Communications Jammed . | . . . . . . . . . . . . . . . . . . . Distress Signals . | . . . . . . . . . . . . . . . . . . . Times Spotted 199 | . 4 . 13 8 . 4 17 13 26 30 13 8 8 4 11 . 16 24 Peak Tracking Total 13 | . 2 . 4 4 . 2 7 3 4 8 6 2 6 2 4 . 5 13 Tactical Retreats 14 | . . . 1 . . . . . . 2 1 . . . 3 . 2 5 Traps | -11 -10 -10 -9 -9 -9 -8 -8 -8 -7 -7 -7 -6 -5 -5 -5 -5 -4 -4 ------- Run | Scr Mat Min Mat Min Exi Min Mat Gar Fac Gar Fac Fac Fac Upp Upp Zhi Pro Fac Traps Triggered 7 | . . . . . . . . 1 1 1 2 1 1 . . . . . Indirectly . | . . . . . . . . . . . . . . . . . . . Trap Hack Attempts . | . . . . . . . . . . . . . . . . . . . Triggered . | . . . . . . . . . . . . . . . . . . . Disarmed . | . . . . . . . . . . . . . . . . . . . Reprogrammed . | . . . . . . . . . . . . . . . . . . . Reused 4 | . . . . . . . . . . . . . . . 1 . 3 . Traps Extracted . | . . . . . . . . . . . . . . . . . . . Installed 6 | . . . . . . . . . . . . . . . 3 . 3 . Triggered 4 | . . . . . . . . . . . . . . . 1 . 3 . Machines | -11 -10 -10 -9 -9 -9 -8 -8 -8 -7 -7 -7 -6 -5 -5 -5 -5 -4 -4 ---------- Run | Scr Mat Min Mat Min Exi Min Mat Gar Fac Gar Fac Fac Fac Upp Upp Zhi Pro Fac Machines Disabled 28 | . 1 . 3 2 . 1 5 1 1 2 8 . 1 . . . . 3 Max in Single Turn 5 | . 1 . 2 1 . 1 1 1 1 1 5 . 1 . . . . 2 Garrison Access 3 | . . . . . . . . . 1 . 1 . . . . . . 1 Garrison Relay 2 | . . . . . . . . 1 . 1 . . . . . . . . Machines Sabotaged . | . . . . . . . . . . . . . . . . . . . Garrisons Compromised . | . . . . . . . . . . . . . . . . . . . Overloaded Fab Kills . | . . . . . . . . . . . . . . . . . . . Fab Network Shutdowns . | . . . . . . . . . . . . . . . . . . . Hacking | -11 -10 -10 -9 -9 -9 -8 -8 -8 -7 -7 -7 -6 -5 -5 -5 -5 -4 -4 --------- Run | Scr Mat Min Mat Min Exi Min Mat Gar Fac Gar Fac Fac Fac Upp Upp Zhi Pro Fac Machines Accessed 32 | . 3 1 3 . . . 1 . 6 . 6 6 3 . . 1 . 2 Terminals 11 | . 3 . 2 . . . . . . . 1 4 . . . . . 1 Fabricators 2 | . . . . . . . . . 1 . . . 1 . . . . . Repair Stations 3 | . . . . . . . . . 1 . 1 . 1 . . . . . Recycling Units . | . . . . . . . . . . . . . . . . . . . Scanalyzers 7 | . . . 1 . . . . . 2 . 2 2 . . . . . . Garrison Access 7 | . . . . . . . 1 . 2 . 2 . 1 . . . . 1 Total Hacks 73 | . 7 1 7 . . . 4 . 11 . 17 12 8 . . 1 . 5 Successful 47 | . 2 1 3 . . . 2 . 7 . 14 8 7 . . 1 . 2 Failed 26 | . 5 . 4 . . . 2 . 4 . 3 4 1 . . . . 3 Catastrophic 4 | . 2 . 1 . . . . . . . . . . . . . . 1 Database Lockouts . | . . . . . . . . . . . . . . . . . . . Manual 1 | . . . . . 1 . . . . . . . . . . . . . Terminals 28 | . 7 . 4 . . . . . . . 5 8 . . . . . 4 Fabricators 4 | . . . . . . . . . 2 . . . 2 . . . . . Repair Stations 8 | . . . . . . . . . 2 . 2 . 4 . . . . . Recycling Units . | . . . . . . . . . . . . . . . . . . . Scanalyzers 18 | . . . 3 . . . . . 5 . 6 4 . . . . . . Garrison Access 13 | . . . . . . . 4 . 2 . 4 . 2 . . . . 1 Terminal Hacks 15 | . 2 1 . . . . . . . . 4 6 . . . 1 . 1 Record 1 | . . . . . . . . . . . . . . . . 1 . . Part Schematic 3 | . . . . . . . . . . . 2 1 . . . . . . Robot Schematic 1 | . . . . . . . . . . . 1 . . . . . . . Open Door 1 | . . 1 . . . . . . . . . . . . . . . . Level Access Points 1 | . . . . . . . . . . . . 1 . . . . . . Branch Access Points 1 | . . . . . . . . . . . . 1 . . . . . . Garrison Index 1 | . . . . . . . . . . . . 1 . . . . . . Locate Traps 2 | . 1 . . . . . . . . . . 1 . . . . . . Recall Investigation 2 | . . . . . . . . . . . 1 . . . . . . 1 Zone Layout 2 | . 1 . . . . . . . . . . 1 . . . . . . Fabricator Hacks 2 | . . . . . . . . . . . . . 2 . . . . . Load Schematic 1 | . . . . . . . . . . . . . 1 . . . . . Build 1 | . . . . . . . . . . . . . 1 . . . . . Repair Station Hacks 6 | . . . . . . . . . 2 . 1 . 3 . . . . . Scan Component 4 | . . . . . . . . . 1 . 1 . 2 . . . . . Repair 2 | . . . . . . . . . 1 . . . 1 . . . . . Recycling Unit Hacks . | . . . . . . . . . . . . . . . . . . . Scanalyzer 13 | . . . 3 . . . . . 3 . 5 2 . . . . . . Insert Component 7 | . . . 2 . . . . . 2 . 2 1 . . . . . . Analyze 6 | . . . 1 . . . . . 1 . 3 1 . . . . . . Garrison Access Hacks 11 | . . . . . . . 2 . 2 . 4 . 2 . . . . 1 Unlock Access 6 | . . . . . . . 1 . 1 . 2 . 1 . . . . 1 Seal Access 1 | . . . . . . . . . 1 . . . . . . . . . Coupler Status 4 | . . . . . . . 1 . . . 2 . 1 . . . . . Unauthorized Hacks . | . . . . . . . . . . . . . . . . . . . Terminals . | . . . . . . . . . . . . . . . . . . . Fabricators . | . . . . . . . . . . . . . . . . . . . Repair Stations . | . . . . . . . . . . . . . . . . . . . Recycling Units . | . . . . . . . . . . . . . . . . . . . Scanalyzers . | . . . . . . . . . . . . . . . . . . . Garrison Access . | . . . . . . . . . . . . . . . . . . . Data Cores Recovered . | . . . . . . . . . . . . . . . . . . . Used . | . . . . . . . . . . . . . . . . . . . Hacking Detections 24 | . 2 . 3 . . . 1 . 5 . 6 4 2 . . . . 1 Full Trace Events . | . . . . . . . . . . . . . . . . . . . Feedback Events . | . . . . . . . . . . . . . . . . . . . Feedback Blocked . | . . . . . . . . . . . . . . . . . . . Robot Schematics Acquired 1 | . . . . . . . . . . . 1 . . . . . . . Robots Built 1 | . . . . . . . . . . . . . 1 . . . . . Matter 153 | . . . . . . . . . . . . . 153 . . . . . Time 81 | . . . . . . . . . . . . . 81 . . . . . Total Robot Build Rating 1 | . . . . . . . . . . . . . 1 . . . . . Part Schematics Acquired 8 | . . . 1 . . . . . 1 . 4 2 . . . . . . Parts Built . | . . . . . . . . . . . . . . . . . . . Matter . | . . . . . . . . . . . . . . . . . . . Time . | . . . . . . . . . . . . . . . . . . . Total Part Build Rating . | . . . . . . . . . . . . . . . . . . . Parts Repaired 2 | . . . . . . . . . 1 . . . 1 . . . . . Time 66 | . . . . . . . . . 44 . . . 22 . . . . . Parts Recycled . | . . . . . . . . . . . . . . . . . . . Recycled Matter . | . . . . . . . . . . . . . . . . . . . Retrieved Matter . | . . . . . . . . . . . . . . . . . . . Retrieved Components . | . . . . . . . . . . . . . . . . . . . Parts Scanalyzed 6 | . . . 1 . . . . . 2 . 2 1 . . . . . . Part Schematics Acquired 5 | . . . 1 . . . . . 1 . 2 1 . . . . . . Parts Damaged 1 | . . . . . . . . . . . 1 . . . . . . . Bothacking | -11 -10 -10 -9 -9 -9 -8 -8 -8 -7 -7 -7 -6 -5 -5 -5 -5 -4 -4 ------------ Run | Scr Mat Min Mat Min Exi Min Mat Gar Fac Gar Fac Fac Fac Upp Upp Zhi Pro Fac Used RIF Installer 2 | . . . . . . . . 1 . 1 . . . . . . . . Hotswap 1 | . . . . . . . . . . 1 . . . . . . . . Robots Hacked 6 | . . . . . . . . . 3 3 . . . . . . . . Non-combat . | . . . . . . . . . . . . . . . . . . . Combat 6 | . . . . . . . . . 3 3 . . . . . . . . Robot Hacks Applied 8 | . . . . . . . . . 5 3 . . . . . . . . scatter_targeting 1 | . . . . . . . . . . 1 . . . . . . . . overwrite_iff 4 | . . . . . . . . . 3 1 . . . . . . . . streamctrl_high 3 | . . . . . . . . . 2 1 . . . . . . . . Relay Couplers Released 8 | . . . . . . . . 4 . 3 . . . . . . . 1 Machine Destruction 8 | . . . . . . . . 4 . 3 . . . . . . . 1 Attached 5 | . . . . . . . . . 2 3 . . . . . . . . Robots Rewired . | . . . . . . . . . . . . . . . . . . . Allies Hacked . | . . . . . . . . . . . . . . . . . . . Hacks Repelled . | . . . . . . . . . . . . . . . . . . . Allies | -11 -10 -10 -9 -9 -9 -8 -8 -8 -7 -7 -7 -6 -5 -5 -5 -5 -4 -4 -------- Run | Scr Mat Min Mat Min Exi Min Mat Gar Fac Gar Fac Fac Fac Upp Upp Zhi Pro Fac Total Allies 9 | . . . . 3 . . . . 3 2 . . 1 . . . . . Largest Group 3 | . . . . 3 3 3 3 2 2 1 . . 1 1 1 . . . Highest-Rated Group 46 | . . . . 40 40 40 40 30 46 16 . . 9 9 9 . . . Highest-Rated Ally 32 | . . . . 16 16 16 16 16 32 16 . . 9 9 9 . . . Total Orders 27 | . . . . 3 . . . 4 3 . . . . 10 7 . . . STAY 13 | . . . . 3 . . . 2 2 . . . . 3 3 . . . FOLLOW 8 | . . . . . . . . 2 1 . . . . 4 1 . . . TUNNEL 6 | . . . . . . . . . . . . . . 3 3 . . . Ally Attacks 68 | . . . . . . 20 28 9 8 3 . . . . . . . . Total Damage 806 | . . . . . . 213 323 145 96 29 . . . . . . . . Kills 7 | . . . . . . 1 3 3 . . . . . . . . . . Allies Corrupted . | . . . . . . . . . . . . . . . . . . . Allies Melted . | . . . . . . . . . . . . . . . . . . . Intel | -11 -10 -10 -9 -9 -9 -8 -8 -8 -7 -7 -7 -6 -5 -5 -5 -5 -4 -4 ------- Run | Scr Mat Min Mat Min Exi Min Mat Gar Fac Gar Fac Fac Fac Upp Upp Zhi Pro Fac Robot Analysis Total . | . . . . . . . . . . . . . . . . . . . Derelict Logs Recovered 7 | . . 2 . 1 . . . . . . . . . . 2 . 2 . Drone Launches . | . . . . . . . . . . . . . . . . . . . Drone Recoveries . | . . . . . . . . . . . . . . . . . . . Exploration | -11 -10 -10 -9 -9 -9 -8 -8 -8 -7 -7 -7 -6 -5 -5 -5 -5 -4 -4 ------------- Run | Scr Mat Min Mat Min Exi Min Mat Gar Fac Gar Fac Fac Fac Upp Upp Zhi Pro Fac Turns Passed 13067 | 59 171 368 360 704 289 264 242 831 1315 756 957 1529 515 904 2162 225 840 576 Spaces Moved 9442 | 52 167 348 223 481 226 171 151 601 925 420 546 1022 355 696 1270 152 992 644 Core 287 | 11 . . . . . . . . 25 . 6 1 . . . . . 244 Treads . | . . . . . . . . . . . . . . . . . . . Legs 4274 | . . . 212 481 226 171 151 601 449 . 361 . . 66 1270 152 26 108 Wheels 3460 | 41 167 348 11 . . . . . 274 420 151 1021 355 630 . . . 42 Hover 51 | . . . . . . . . . 13 . 28 . . . . . . 10 Flight 1370 | . . . . . . . . . 164 . . . . . . . 966 240 Fastest Speed 32 | 50 90 90 90 120 120 120 120 120 37 100 100 100 100 100 120 120 32 32 Average Speed 106 | 81 90 90 118 120 120 120 120 120 115 100 123 100 100 108 135 120 66 68 Slowest Speed 450 | 90 90 100 120 120 120 120 120 150 400 100 450 350 110 150 150 120 150 450 Overloaded Moves . | . . . . . . . . . . . . . . . . . . . Propulsion Burnouts . | . . . . . . . . . . . . . . . . . . . Robots Hopped 1 | . . . . . . . . . . . . . . . . . . 1 Cave-ins Triggered . | . . . . . . . . . . . . . . . . . . . Exploration Rate (%) 45 | 4 32 77 26 68 60 46 19 59 16 59 19 33 6 78 96 57 92 13 Regions Visited 18 Branch Regions 8 Pre-discovered Areas . | . . . . . . . . . . . . . . . . . . . Known Exits Taken 3 | . . . . . . . 1 . 1 . . 1 . . . . . . Unknown Exits Taken 13 | 1 1 1 1 1 1 1 . . . . 1 . 1 1 1 1 1 . Scrap Searched 10 | . . 1 . 2 . . . . . . . . . 2 4 . 1 . Spaces Dug 6 | . . . . . . . . . . . . 1 . . . . . 5 Terrain Destroyed 352 | . . . 63 1 . 26 49 23 33 22 35 1 2 3 17 . 60 17 Melee . | . . . . . . . . . . . . . . . . . . . Projectile 81 | . . . 1 1 . 2 . . 5 4 10 1 2 3 17 . 21 14 AOE 271 | . . . 62 . . 24 49 23 28 18 25 . . . . . 39 3 Terrain Rammed . | . . . . . . . . . . . . . . . . . . . Walls Destroyed . | . . . . . . . . . . . . . . . . . . . Machines Disabled . | . . . . . . . . . . . . . . . . . . . Actions | -11 -10 -10 -9 -9 -9 -8 -8 -8 -7 -7 -7 -6 -5 -5 -5 -5 -4 -4 --------- Run | Scr Mat Min Mat Min Exi Min Mat Gar Fac Gar Fac Fac Fac Upp Upp Zhi Pro Fac Total 11929 | 66 174 403 276 584 245 216 186 666 1103 698 775 1502 489 799 1672 193 1138 744 Wait 1705 | . . 40 18 92 5 28 4 20 59 212 141 442 100 54 342 18 91 39 Move 9422 | 51 166 347 222 480 225 170 150 600 924 419 545 1021 354 695 1269 151 991 642 Hop 1 | . . . . . . . . . . . . . . . . . . 1 Pick Up 114 | 9 . 6 4 . . . 5 3 13 6 18 4 6 8 12 4 4 12 Fast Attach 69 | . 2 1 2 . 6 3 2 . 21 4 5 7 3 3 1 7 . 2 Attach 88 | 5 . 1 . . . 1 3 3 14 9 10 4 4 5 3 3 8 15 Detach 17 | . . 1 . . 1 . . . 4 2 . 1 1 1 . 1 1 4 Swap 19 | . . 3 5 . . 1 . 1 3 . 4 . 1 . 1 . . . Drop 88 | . . 4 4 . 8 3 4 1 11 2 14 6 6 1 10 7 4 3 Fire 382 | 1 6 . 21 12 . 10 18 33 50 36 38 17 14 32 31 2 35 26 Melee . | . . . . . . . . . . . . . . . . . . . Ram 1 | . . . . . . . . . . . . . . . . . 1 . Kick 3 | . . . . . . . . . 3 . . . . . . . . . Crush . | . . . . . . . . . . . . . . . . . . . Escape Stasis 13 | . . . . . . . . 5 . 8 . . . . . . . . Rewire 1 | . . . . . . . . . 1 . . . . . . . . . Trap 6 | . . . . . . . . . . . . . . . 3 . 3 . Miscellaneous . | . . . . . . . . . . . . . . . . . . . Route ------- -11/Scrapyard -10/Materials -10/Mines -9/Materials -9/Mines (discovered 2 exits: *Mat / *Exi) -9/Exiles -8/Mines -8/Materials -8/Garrison (discovered 2 exits: *Fac x2) -7/Factory (discovered 2 exits: [*Low] / Gar) -7/Garrison (discovered 2 exits: *Fac x2) -7/Factory (discovered 2 exits: *Fac / Gar) -6/Factory (discovered 6 exits: *Fac x4 / Low x2) -5/Factory (discovered 2 exits: [*Upp] / Gar) -5/Upper Caves -5/Upper Caves (discovered 2 exits: *Fac / *Zhi) -5/Zhirov -4/Proximity Caves -4/Factory (discovered 1 exit: Res) History --------- Turn | Location | Event 5 | -11/Scrapyard | Discovered new exit (range 15) 60 | -11/Scrapyard | Entered Materials 121 | -10/Materials | Discovered new exit (range 13) 231 | -10/Materials | Entered Mines 252 | -10/Mines | Learned Materials stockpile data 314 | -10/Mines | Build established: Mutant 367 | -10/Mines | Met a Derelict shopkeep closing up shop 535 | -10/Mines | Learned Materials garrison access intel 560 | -10/Mines | Discovered new exit (range 10) 599 | -10/Mines | Entered Materials 599 | -9/Materials | Evolved 2 slots: Utility x2 915 | -9/Materials | Discovered new exit (range 15) 959 | -9/Materials | Entered Mines 977 | -9/Mines | Assembled infested the area 977 | -9/Mines | Met a Derelict bent on vengeance 1113 | -9/Mines | Learned Materials non-interactive machine intel 1178 | -9/Mines | Deemed a non-threat by the Exiles lab entrance 1180 | -9/Mines | Discovered new exit (range 5) 1237 | -9/Mines | Assisted by bots powering up and referring to "LRC-V3" 1576 | -9/Mines | Discovered new exit (range 14) 1663 | -9/Mines | Entered Exiles 1663 | -9/Exiles | Accompanied by 3 allies 1693 | -9/Exiles | Met 8R-AWN 1713 | -9/Exiles | Met EX-HEX 1749 | -9/Exiles | Met EX-BIN 1762 | -9/Exiles | Aligned with FarCom system 1763 | -9/Exiles | Given EX-Vault access code 1791 | -9/Exiles | Opened EX-Vault 1803 | -9/Exiles | Found Prototype Ballistic Gun 1803 | -9/Exiles | Identified AWS/Gauss 1812 | -9/Exiles | Found Prototype Device 1812 | -9/Exiles | Identified Chronowheel 1812 | -9/Exiles | Activated Chronowheel 1859 | -9/Exiles | Warned to stay clear of 0b10 Research branches 1891 | -9/Exiles | Met EX-DEC 1934 | -9/Exiles | Discovered new exit (range 11) 1952 | -9/Exiles | Left Exiles lab with AWS/Gauss 1952 | -9/Exiles | Entered Mines 1952 | -8/Mines | Accompanied by 3 allies 2182 | -8/Mines | Discovered new exit (range 11) 2216 | -8/Mines | Entered Materials 2216 | -8/Materials | Accompanied by 3 allies 2216 | -8/Materials | Evolved 2 slots: Utility x1, Weapon x1 2217 | -8/Materials | Loaded intel: 42 non-interactive machine locations 2218 | -8/Materials | Loaded intel: 1 garrison access location 2433 | -8/Materials | Identified exit to Garrison 2440 | -8/Materials | Destroyed 9 combat bots 2458 | -8/Materials | Entered Garrison 2458 | -8/Garrison | Accompanied by 2 allies 2468 | -8/Garrison | Triggered checkpoint 2670 | -8/Garrison | Triggered checkpoint 2742 | -8/Garrison | Discovered new exit (range 10) 2782 | -8/Garrison | Triggered checkpoint 2819 | -8/Garrison | Garrison Relay disabled 2932 | -8/Garrison | Triggered checkpoint 2964 | -8/Garrison | Triggered checkpoint 3029 | -8/Garrison | Discovered new exit (range 12) 3052 | -8/Garrison | Installed Relay Interface Framework 3289 | -8/Garrison | Entered Factory 3289 | -7/Factory | Accompanied by 2 allies 3289 | -7/Factory | Evolved 2 slots: Utility x2 3291 | -7/Factory | Build established: Scavenger-Skirmisher 3302 | -7/Factory | Garrison activated, responded to threat 3369 | -7/Factory | Lost 6 parts (1p1n1u3w) 3642 | -7/Factory | Build established: Scavenger-Mutant 3928 | -7/Factory | Discovered new exit (range 3) 4052 | -7/Factory | Garrison activated, responded to threat 4061 | -7/Factory | Identified exit to Garrison 4079 | -7/Factory | P-60 Hacker assimilated allied S-27 Virus 4106 | -7/Factory | Lost 8 parts (1p2n3u2w) 4197 | -7/Factory | Lost 5 parts (1p1n1u2w) 4198 | -7/Factory | Destroyed 7 combat bots 4475 | -7/Factory | Build established: Hacker-Mutant 4555 | -7/Factory | Repaired Arm. Huge Wheel 4604 | -7/Factory | Entered Garrison 4663 | -7/Garrison | Garrison Relay disabled 4668 | -7/Garrison | Triggered checkpoint 4746 | -7/Garrison | Triggered checkpoint 4758 | -7/Garrison | Triggered checkpoint 4777 | -7/Garrison | Triggered checkpoint 4789 | -7/Garrison | Core integrity fell below 50% 4823 | -7/Garrison | Destroyed 12 combat bots 4828 | -7/Garrison | Lost 7 parts (2u5w) 5101 | -7/Garrison | Discovered new exit (range 11) 5185 | -7/Garrison | Build established: Scavenger-Skirmisher 5339 | -7/Garrison | Discovered new exit (range 9) 5356 | -7/Garrison | Expanded RIF knowledge: Hotswap 5360 | -7/Garrison | Entered Factory 5623 | -7/Factory | Identified exit to Garrison 5732 | -7/Factory | Garrison activated, responded to threat 5872 | -7/Factory | Core integrity fell below 20% 5905 | -7/Factory | Lost 3 parts (1p2w) 6170 | -7/Factory | Build established: Hacker-Mutant 6180 | -7/Factory | Identified exit to Garrison 6247 | -7/Factory | Discovered new exit (range 8) 6317 | -7/Factory | Entered another Factory area 6317 | -6/Factory | Evolved 2 slots: Propulsion x2 6486 | -6/Factory | Identified exit to Lower Caves 6559 | -6/Factory | Lost 3 parts (1p1u1w) 7203 | -6/Factory | Build established: Hacker-Gunner 7386 | -6/Factory | Identified exit to Factory 7846 | -6/Factory | Entered another Factory area 7846 | -5/Factory | Evolved 2 slots: Utility x2 7931 | -5/Factory | Identified exit to Garrison 8139 | -5/Factory | Repaired Arm. Huge Wheel 8288 | -5/Factory | Fabricated T-07 Excavator (x1) 8312 | -5/Factory | Discovered new exit (range 15) 8361 | -5/Factory | Entered Upper Caves 8361 | -5/Upper Caves | Accompanied by 1 ally 8767 | -5/Upper Caves | Spotted B-75 Beast 8826 | -5/Upper Caves | Destroyed B-75 Beast 8856 | -5/Upper Caves | Lost 4 parts (1n1u2w) 9120 | -5/Upper Caves | Build established: Hacker-Mutant 9186 | -5/Upper Caves | Discovered new exit (range 14) 9265 | -5/Upper Caves | Entered another Upper Caves area 9265 | -5/Upper Caves | Accompanied by 1 ally 9343 | -5/Upper Caves | Learned Factory terminal intel 9394 | -5/Upper Caves | Discovered new exit (range 16) 9454 | -5/Upper Caves | Build established: Hacker-Gunner 10260 | -5/Upper Caves | Learned 4 Factory zone layouts 10338 | -5/Upper Caves | Lost 3 parts (1n2w) 10361 | -5/Upper Caves | Encountered a Warlord checkpoint 10431 | -5/Upper Caves | Spotted B-75 Beast 10593 | -5/Upper Caves | Build established: Hacker-Mutant 10867 | -5/Upper Caves | Destroyed B-75 Beast 11251 | -5/Upper Caves | Discovered new exit (range 10) 11427 | -5/Upper Caves | Entered Zhirov 11427 | -5/Zhirov | Discovered new exit (range 3) 11449 | -5/Zhirov | Met Zhirov 11506 | -5/Zhirov | Found Alien Artifact 11506 | -5/Zhirov | Identified Integrated Reactor 11506 | -5/Zhirov | Installed Integrated Reactor, increased core energy generation (+10) 11652 | -5/Zhirov | Entered Proximity Caves 11696 | -4/Proximity Caves | Lost 3 parts (1n2w) 12218 | -4/Proximity Caves | Attracted the attention of an 0b10 checkpoint 12225 | -4/Proximity Caves | Core integrity fell below 50% 12281 | -4/Proximity Caves | Lost 6 parts (1p1n4w) 12302 | -4/Proximity Caves | Spotted B-86 Titan 12312 | -4/Proximity Caves | Acquired the password to a Derelict Tinkerer's latest research 12388 | -4/Proximity Caves | Learned location of 1 exit from Research 12488 | -4/Proximity Caves | Build established: Hacker-Sprinter 12489 | -4/Proximity Caves | Discovered new exit (range 7) 12492 | -4/Proximity Caves | Entered Factory 12492 | -4/Factory | Evolved 2 slots: Utility x2 12493 | -4/Factory | Identified exit to Research 12494 | -4/Factory | Loaded intel: 20 terminal locations 12542 | -4/Factory | Found Prototype Processor 12543 | -4/Factory | Identified Exp. Targeting Computer 12810 | -4/Factory | Garrison activated, responded to threat 12838 | -4/Factory | Build established: Hacker-Mutant 12888 | -4/Factory | Identified exit to Garrison 12919 | -4/Factory | Lost 11 parts (1p3n5u2w) 12965 | -4/Factory | Core integrity fell below 50% 13024 | -4/Factory | Lost 6 parts (2n3u1w) 13062 | -4/Factory | Core integrity fell below 20% 13068 | -4/Factory | Destroyed by G-67 Veteran with Electrolaser Last Messages --------------- 12990_ Penetrated by Slug. 12990_ Imp. Linear Gravjet destroyed. 12993_ Penetrated by Slug. 12993_ Imp. Recalibrator destroyed. 12994_ K-01 Serf collects debris. 12996_ Connecting with Terminal... >>Recall(Investigation) Establishing remote squad link... No tasked investigation squads found. 12999_ System corrupted: Substantial component data lost. 13025_ System corrupted: Component data lost. 13044_ Drone sends a signal. 13056_ Penetrated by Slug. 13058_ Slug penetrates Wall. 13058_ Penetrated by Slug. 13059_ C-30 ARC bursts open, deploying its payload. 13059_ G-73 Enforcer unfolds itself. 13059_ G-67 Veteran unfolds itself. 13061_ Slug penetrates Wall. 13065_ Acquired 116 matter. Map ----- +----------------------------------------------------+ | ?????????????????????????????????? | | ?????????????????????????????????? | | ?????????????????????????????????# | | ?????????????????????????????????# | | ?????????????????????????????????# | | ?????????????????????########????# | | ????????????????????? ???# | | ????????????"???????# ???# | | ????????????"T??????# ! ??# | | ???????????? ?????# ! ??# | | ??????????? u ????# ?# | | ??????????? ????# ?# | | ???????????# #????# # | | ???????????# #????# ! # | | ???????????+ #????# ! + | | ???????????# #????# # | | ???????????# #????# ! # | | ????????o??# #????# ?# | | ???????????# #????############## | | ???????????# #????????????????# | | ?#########?# #????????????????# | | ?# ### ################## | | ?# | | ?# | | ?# | | ?# @ | | ?# Y | | ?# ######################## | | ?###g g###??????????????????????###+ | | ???# Rh#????????????????????????? | | ???# hg#???????????????????????? | | ???# g #???????????????????????# | | ??## ##??????????????????????# | | ??# ###????????????????????# " | | ### w # ###??????????????????# " | | # # % # #??????????????????# " | | ??# #####??????????????????# | | ??# #??????????????????????# ? | | ??### ###??????????????????????# ? | | ????# #????????????????????????# ? | | ????# #####????????????????????? ? | | ????# # #??????????????????????#?? | | ????# # T #????##############??????? | | ????# # #????# #??????? | | ????# h ##????# #??????? | | ????# #?????# #??????? | | ????# ####### #??????? | | ????# + #??????? | | ????# #### ! #??????? | | ????# #??# #??????? | +----------------------------------------------------+ Best States ------------- Heat Dissipation 81 Energy Generation 24 Energy Capacity 300 Matter Stores 339 Matter Capacity 500 Sight Range 18 Robot Scan Range 10 Terrain Scan Density 10 Additional Mass Support 9 Armor Coverage 600 Utility Shielding 90 Weapon Cycling 15 Evasion (%) 63 Targeting Accuracy 12 Offensive Hacking 30 Defensive Hacking 24 Relay Coupler Types 74 Relay Coupler Value 3 Item Schematics ----------------- Hacking Suite | -9/Materials | Scanalyzed Imp. Deuterium Engine | -7/Factory | Scanalyzed Gauss Cannon | -7/Factory | Hacked Mni. Drone Bay | -7/Factory | Hacked Enh. Nuclear Core | -7/Factory | Scanalyzed Weapon Cycler | -7/Factory | Scanalyzed System Shield | -6/Factory | Scanalyzed Flexi-carbon Leg | -6/Factory | Hacked Robot Schematics ------------------ T-07 Excavator | -7/Factory | Hacked Fabricated ------------ T-07 Excavator | x1 | -5/Factory Alien Tech Used ----------------- Integrated Reactor Achievements -------------- None Challenges ------------ None Game ------ Seed TractorAbsorptionMultirail Manual? 0 Play Time 02:46:49 Cumulative 70.4 hours Start 2021.02.05 @ 18:01:31 End 2021.02.05 @ 22:45:24 Sessions 3 Manual Loads 0 Difficulty Rogue Special Mode None Game No. 87 Rogue 87 Adventurer 0 Explorer 0 Win Type - Total 0 Types 0/0/0/0/0/0/0/0/0 Lore% 43 Gallery% 49 Achievement% 27 Wizard Run 0 Options --------- ASCII 0 Keyboard 0 Movement Mouse Keybinds 0 Fullscreen 1 Font 18/Smallcaps Map View 76x50 Tactical HUD 1 Map Filters NONE Filters NONE Steam 1 RUN: c65f18e3-1ec0-4d40-a403-d250dace26e8